bitfinex-derivatives/quotes_SOLF0:USTF0_20240906
["timestamp","ask_amount","ask_price","bid_price","bid_amount"]
[1725617279675,0.05731636,129.74,129.72,3.8549]
[1725617279676,3.91181636,129.74,129.72,3.8549]
[1725617279882,0.05731636,129.74,129.71,29.66230727]
[1725617280274,0.05731636,129.74,129.73,3.8547]
[1725617280574,0.05731636,129.74,129.71,29.66230727]
[1725617280775,3.91181636,129.74,129.72,3.8548]
[1725617280977,0.05731636,129.74,129.71,0.05230727]
[1725617281180,29.95086386,129.74,129.71,0.05230727]
[1725617281368,31.09791636,129.74,129.66,29.61]
[1725617281570,0.28357527,129.73,129.66,29.61]
[1725617281974,11.85,129.71,129.65,11.85]
[1725617282183,11.85,129.71,129.63,73.65753394]
[1725617282385,3.8571,129.65,129.62,3.8578]
[1725617282587,7.61885204,129.65,129.62,15.7078]
[1725617282891,3.8576,129.64,129.62,0.05608562]
[1725617285182,3.8576,129.64,129.62,11.90608562]
[1725617285883,3.8576,129.64,129.62,0.05608562]
[1725617287483,3.9143119,129.65,129.62,3.91398562]
[1725617288685,3.8575,129.64,129.62,0.05608562]
[1725617288885,0.0571119,129.65,129.62,0.05608562]
[1725617289295,3.8574,129.64,129.62,3.91388562]
[1725617290502,3.8574,129.64,129.62,0.05608562]
[1725617291590,0.0571119,129.65,129.62,29.69608562]
[1725617291989,0.0571119,129.65,129.63,3.8575]
[1725617293298,3.9142119,129.65,129.63,3.8575]
[1725617294500,0.0571119,129.65,129.63,3.8575]
[1725617295003,3.9142119,129.65,129.63,3.8575]
[1725617295902,0.0571119,129.65,129.63,3.8575]
[1725617297398,0.0571119,129.65,129.62,29.69608562]
[1725617297399,0.0571119,129.65,129.64,3.8574]
[1725617301296,0.0571119,129.65,129.64,33.4974]
[1725617301495,3.8561,129.69,129.66,3.8565]
[1725617302007,3.856,129.69,129.64,29.64]
[1725617302506,3.8563,129.68,129.64,29.64]
[1725617302707,3.90767115,129.68,129.64,29.64]
[1725617302907,3.90767115,129.68,129.66,3.8566]
[1725617303107,3.90767115,129.68,129.66,3.90721482]
[1725617306004,0.05137115,129.68,129.66,15.75721482]
[1725617306406,0.05137115,129.68,129.67,15.7065]
[1725617308008,0.05137115,129.68,129.67,3.8565]
[1725617309009,0.05137115,129.68,129.66,15.75711482]
[1725617309211,0.05137115,129.68,129.66,3.90711482]
[1725617314222,3.90757115,129.68,129.66,3.90711482]
[1725617314816,3.8565,129.67,129.66,0.05061482]
[1725617315014,11.85,129.67,129.57,4.37345272]
[1725617315215,11.85,129.65,129.57,3.89035272]
[1725617315417,3.8579,129.63,129.52,8.2064]
[1725617315619,11.85,129.64,129.58,11.85]
[1725617315816,11.85,129.63,129.54,74.64451143]
[1725617316014,0.05333655,129.6,129.55,11.85]
[1725617316521,3.859,129.59,129.55,15.7098]
[1725617317316,3.859,129.59,129.56,3.8597]
[1725617318522,10.59943031,129.6,129.56,3.8597]
[1725617318921,0.05333655,129.6,129.58,3.859]
[1725617319119,0.05333655,129.6,129.56,29.67]
[1725617319319,0.05333655,129.6,129.58,3.859]
[1725617322129,3.91193655,129.6,129.57,3.8593]
[1725617322531,0.05333655,129.6,129.56,29.67]
[1725617322833,0.05333655,129.6,129.58,3.859]
[1725617323031,0.05333655,129.6,129.59,29.67]
[1725617323235,0.05333655,129.6,129.59,33.5289]
[1725617328332,1.3806,129.64,129.62,3.8579]
[1725617328732,5.2381,129.64,129.59,29.67]
[1725617329134,5.2381,129.64,129.61,3.8581]
[1725617329636,5.2878206,129.64,129.61,3.8581]
[1725617333037,3.8577,129.63,129.61,3.8581]
[1725617335347,3.8577,129.63,129.61,3.91433932]
[1725617336633,3.3577,129.63,129.61,3.91433932]
[1725617336840,1.4303206,129.64,129.61,0.05623932]
[1725617337338,3.858,129.62,129.61,0.05623932]
[1725617337945,3.8584,129.61,129.59,3.8587]
[1725617338439,11.87,129.63,129.6,3.8586]
[1725617338654,3.8581,129.62,129.6,3.8586]
[1725617339139,3.9123008,129.62,129.6,3.8586]
[1725617340742,3.8583,129.61,129.6,3.8586]
[1725617341241,0.0542008,129.62,129.6,3.8586]
[1725617341539,3.9124008,129.62,129.6,3.8586]
[1725617341841,3.9124008,129.62,129.59,3.8587]
[1725617342041,3.8583,129.61,129.59,3.8587]
[1725617343538,3.8583,129.61,129.59,3.91303471]
[1725617346647,7.62720657,129.6,129.59,0.05433471]
[1725617347137,3.8596,129.57,129.55,3.8599]
[1725617347345,3.8596,129.57,129.53,11.87]
[1725617347540,1.4177,129.59,129.53,11.87]
[1725617347844,13.2877,129.59,129.53,11.87]
[1725617348136,3.8597,129.57,129.54,3.8602]
[1725617348336,13.2877,129.59,129.54,3.8602]
[1725617348537,3.91300165,129.57,129.55,0.05468414]
[1725617349537,3.91300165,129.57,129.55,3.91468414]
[1725617351051,0.05330165,129.57,129.55,0.05468414]
[1725617351547,3.91300165,129.57,129.55,3.91468414]
[1725617351940,0.05330165,129.57,129.55,0.05468414]
[1725617352344,3.8597,129.56,129.55,0.05468414]
[1725617352646,0.05330165,129.57,129.55,0.05468414]
[1725617352848,3.91290165,129.57,129.55,3.91458414]
[1725617355050,3.8597,129.56,129.55,0.05468414]
[1725617356248,3.91290165,129.57,129.55,0.05468414]
[1725617356750,0.05330165,129.57,129.55,0.05468414]
[1725617357152,3.8597,129.56,129.55,0.05468414]
[1725617363256,0.05330165,129.57,129.55,0.05468414]
[1725617363762,3.91290165,129.57,129.55,3.91468414]
[1725617364350,3.8597,129.56,129.55,0.05468414]
[1725617367057,3.91290165,129.57,129.55,0.05468414]
[1725617373764,3.8597,129.56,129.55,0.05468414]
[1725617375965,0.05330165,129.57,129.55,0.05468414]
[1725617376567,0.05330165,129.57,129.56,3.8597]
[1725617382470,3.8584,129.61,129.59,3.8586]
[1725617382668,2.7915,129.65,129.6,11.87]
[1725617382977,2.7915,129.65,129.61,11.87]
[1725617383268,2.7915,129.65,129.55,7.7201]
[1725617383269,11.87,129.69,129.62,11.87]
[1725617383477,3.91510622,129.66,129.63,3.91190248]
[1725617383870,0.05820622,129.66,129.64,11.87]
[1725617384069,0.05820622,129.66,129.64,15.7272]
[1725617384374,0.05820622,129.66,129.64,11.87]
[1725617384976,3.91510622,129.66,129.63,3.91190248]
[1725617386468,3.91510622,129.66,129.64,15.7272]
[1725617386469,0.05820622,129.66,129.64,15.7272]
[1725617386668,0.05820622,129.66,129.64,11.87]
[1725617387269,0.05820622,129.66,129.65,3.8571]
[1725617388272,0.05820622,129.66,129.64,3.8572]
[1725617388473,3.91500622,129.66,129.64,3.8572]
[1725617398480,3.91500622,129.66,129.64,15.7272]
[1725617398685,0.05820622,129.66,129.65,15.7271]
[1725617399385,0.05820622,129.66,129.65,3.8571]
[1725617399588,0.05820622,129.66,129.65,15.7271]
[1725617400471,0.05820622,129.66,129.64,15.7271]
[1725617401287,3.91510622,129.66,129.64,15.7271]
[1725617402181,0.05820622,129.66,129.63,0.05450248]
[1725617402684,3.8574,129.64,129.63,0.05450248]
[1725617407683,3.8582,129.62,129.59,11.87]
[1725617408778,3.91211525,129.62,129.59,11.87]
[1725617409390,3.91211525,129.62,129.6,3.8584]
[1725617409995,3.91211525,129.62,129.6,3.91705605]
[1725617410996,3.8583,129.61,129.6,0.05865605]
[1725617411185,7.62294595,129.61,129.6,0.05865605]
[1725617411686,3.8588,129.6,129.57,15.7293]
[1725617412387,3.8589,129.59,129.57,15.7293]
[1725617412693,3.91427218,129.59,129.57,15.7293]
[1725617412887,3.91427218,129.59,129.57,15.78214356]
[1725617416699,0.05537218,129.59,129.58,15.7291]
[1725617418804,2.7763,129.64,129.61,3.8583]
[1725617419494,6.6338,129.64,129.61,3.8583]
[1725617420000,6.69041911,129.64,129.61,3.8583]
[1725617420201,6.69041911,129.64,129.62,3.858]
[1725617420394,6.69041911,129.64,129.62,15.728]
[1725617422303,2.83291911,129.64,129.62,11.87]
[1725617423000,2.83291911,129.64,129.62,15.7278]
[1725617423001,6.69041911,129.64,129.62,15.7278]
[1725617425697,3.8577,129.63,129.61,15.7281]
[1725617425897,3.91212932,129.63,129.61,3.8581]
[1725617426096,0.05442932,129.63,129.61,0.04934947]
[1725617426606,3.858,129.62,129.61,0.04934947]
[1725617427305,3.8587,129.6,129.56,11.87]
[1725617427498,7.75110834,129.6,129.56,11.87]
[1725617427698,7.75110834,129.6,129.58,3.859]
[1725617428300,7.80354547,129.6,129.58,3.90869439]
[1725617433808,11.87,129.59,129.54,3.8601]
[1725617434005,14.6273,129.59,129.54,3.8601]
[1725617434396,3.8598,129.56,129.54,3.8601]
[1725617434808,3.91680761,129.56,129.54,3.8601]
[1725617435003,0.05700761,129.56,129.48,3.85782647]
[1725617435215,14.6273,129.59,129.53,11.87]
[1725617435509,3.8599,129.56,129.53,15.7304]
[1725617435902,3.8599,129.56,129.54,11.87]
[1725617436212,0.05048165,129.56,129.54,15.7301]
[1725617439809,0.05048165,129.56,129.54,15.78191003]
[1725617440296,3.91028165,129.56,129.54,15.78191003]
[1725617441306,3.91028165,129.56,129.54,0.05181003]
[1725617441898,3.91028165,129.56,129.54,3.91201003]
[1725617448410,0.05048165,129.56,129.55,15.73]
[1725617448813,1.322,129.63,129.55,11.87]
[1725617449112,3.8585,129.61,129.58,11.87]
[1725617449807,3.91767001,129.61,129.58,11.87]
[1725617450402,3.91767001,129.61,129.58,15.729]
[1725617451109,3.91767001,129.61,129.59,3.8588]
[1725617451508,0.05917001,129.61,129.59,3.8588]
[1725617453409,3.91747001,129.61,129.59,3.8588]
[1725617454205,3.91747001,129.61,129.58,15.7289]
[1725617454413,7.84320802,129.61,129.58,3.8589]
[1725617454706,11.92917001,129.61,129.51,71.44810126]
[1725617454909,0.0529187,129.57,129.54,11.87]
[1725617455520,0.0529187,129.57,129.51,70.63640126]
[1725617455703,0.0529187,129.57,129.52,11.87]
[1725617456205,3.9125187,129.57,129.52,11.87]
[1725617456405,0.0529187,129.57,129.54,11.87]
[1725617457308,0.0529187,129.57,129.55,3.8599]
[1725617459618,0.0529187,129.57,129.55,15.7299]
[1725617459819,0.0529187,129.57,129.56,3.8597]
[1725617464626,1.322,129.63,129.56,11.87]
[1725617464824,1.322,129.63,129.61,3.8581]
[1725617465030,3.8578,129.63,129.6,11.87]
[1725617465326,14.546,129.65,129.59,15.7286]
[1725617465525,3.8578,129.63,129.59,11.87]
[1725617465732,0.05870863,129.62,129.6,0.04872389]
[1725617465928,0.05870863,129.62,129.6,11.91872389]
[1725617467129,0.05870863,129.62,129.61,3.8583]
[1725617468120,0.05870863,129.62,129.61,15.7283]
[1725617468630,228.0,129.72,129.61,11.87]
[1725617468631,13.2195,129.69,129.61,11.87]
[1725617468828,359.82439228,129.68,129.64,11.87]
[1725617469029,359.82439228,129.68,129.65,3.857]
[1725617469741,359.87445252,129.68,129.65,3.857]
[1725617470228,359.87445252,129.68,129.66,3.8567]
[1725617470435,359.87445252,129.68,129.64,11.87]
[1725617470635,3.8565,129.67,129.64,11.87]
[1725617470928,3.8565,129.67,129.64,3.8572]
[1725617471324,3.8565,129.67,129.64,3.91109119]
[1725617472131,11.87,129.66,129.64,0.05389119]
[1725617472333,13.3057,129.66,129.64,0.05389119]
[1725617472527,13.3057,129.66,129.54,76.57797908]
[1725617472730,3.8578,129.63,129.6,3.8584]
[1725617473541,3.91581627,129.63,129.6,3.8584]
[1725617473732,11.92801627,129.63,129.57,11.87]
[1725617473938,0.05172273,129.61,129.56,29.66]
[1725617474135,0.05172273,129.61,129.59,3.8587]
[1725617474532,0.05172273,129.61,129.59,3.91395389]
[1725617476745,0.05172273,129.61,129.6,3.8586]
[1725617476937,0.05172273,129.61,129.6,33.5186]
[1725617477444,5.2927,129.66,129.63,3.8576]
[1725617477649,1.4357,129.66,129.63,3.8576]
[1725617478444,1.48581876,129.66,129.63,3.8576]
[1725617478646,3.8573,129.65,129.63,0.05651401]
[1725617483349,3.8573,129.65,129.63,3.91411401]
[1725617487349,5.34271876,129.66,129.64,3.8574]
[1725617490151,3.8571,129.65,129.63,3.91401401]
[1725617491644,1.48581876,129.66,129.65,3.8571]
[1725617491844,0.05011876,129.66,129.65,3.8571]
[1725617509658,11.90011876,129.66,129.63,0.05651401]
[1725617509857,11.85,129.65,129.63,0.05651401]
[1725617510166,3.8574,129.64,129.63,0.05651401]
[1725617510362,5.1795,129.64,129.63,0.05651401]
[1725617520064,1.3548,129.65,129.63,0.05651401]
[1725617520268,0.05011876,129.66,129.64,11.85]
[1725617520673,0.05011876,129.66,129.65,15.7071]
[1725617522570,0.05011876,129.66,129.65,3.8571]
[1725617523759,0.05011876,129.66,129.64,3.8572]
[1725617523965,0.05011876,129.66,129.63,0.05651401]
[1725617524368,3.90711876,129.66,129.63,3.91391401]
[1725617524872,3.90711876,129.66,129.64,3.8572]
[1725617525675,0.05011876,129.66,129.65,3.8571]
[1725617525868,0.05011876,129.66,129.65,15.7071]
[1725617527268,352.06761,129.68,129.67,3.8565]
[1725617527463,233.05151,129.68,129.67,15.7065]
[1725617527667,206.05151,129.68,129.67,15.7065]
[1725617529980,144.52151,129.68,129.67,33.4965]
[1725617530169,0.04942864,129.69,129.68,3.8562]
[1725617533582,3.83763586,129.74,129.71,3.855]
[1725617535183,4.1374,129.76,129.68,29.64]
[1725617535383,0.28354519,129.75,129.68,29.64]
[1725617535680,3.8545,129.74,129.71,3.8553]
[1725617536278,3.8553,129.72,129.67,29.64]
[1725617536480,37.67953766,129.76,129.67,29.64]
[1725617536786,3.8548,129.73,129.7,3.8553]
[1725617536979,37.67953766,129.76,129.67,29.64]
[1725617537282,0.28355782,129.75,129.67,29.64]
[1725617537586,0.05097137,129.72,129.71,3.8551]
[1725617537772,3.8546,129.74,129.71,3.8551]
[1725617537971,0.05012557,129.73,129.71,3.8551]
[1725617539382,0.05012557,129.73,129.71,3.8553]
[1725617539881,0.05012557,129.73,129.7,0.0579846]
[1725617540077,0.05012557,129.73,129.72,3.855]
[1725617544290,0.05012557,129.73,129.7,29.6979846]
[1725617545586,0.05012557,129.73,129.72,3.855]
[1725617546382,0.05012557,129.73,129.72,33.495]
[1725617549586,0.05012557,129.73,129.7,0.0579846]
[1725617550093,29.69012557,129.73,129.7,0.0579846]
[1725617550293,3.8553,129.71,129.67,107.46433417]
[1725617550596,3.76550875,129.71,129.64,29.64]
[1725617550782,29.64,129.73,129.64,29.64]
[1725617550987,29.92358764,129.72,129.63,29.64]
[1725617551188,2.89228764,129.71,129.63,29.64]
[1725617551391,0.04868772,129.68,129.66,3.8566]
[1725617551585,0.04868772,129.68,129.63,29.64]
[1725617551989,0.04868772,129.68,129.65,3.8569]
[1725617552593,0.04868772,129.68,129.65,3.91414705]
[1725617553392,3.90488772,129.68,129.65,3.91414705]
[1725617553896,3.90488772,129.68,129.65,0.05724705]
[1725617553897,3.8567,129.67,129.65,0.05724705]
[1725617555100,3.90498772,129.68,129.65,3.91434705]
[1725617557299,0.04868772,129.68,129.66,3.8567]
[1725617557889,3.90488772,129.68,129.66,3.8567]
[1725617558785,0.04868772,129.68,129.66,3.8567]
[1725617561400,0.04868772,129.68,129.67,3.8565]
[1725617566103,0.04868772,129.68,129.65,0.05724705]
[1725617566306,11.89868772,129.68,129.65,0.05724705]
[1725617566710,3.8568,129.66,129.65,0.05724705]
[1725617566902,11.85,129.66,129.57,3.91370869]
[1725617567105,1.3518,129.65,129.57,15.76370869]
[1725617567299,1.3518,129.65,129.59,3.8587]
[1725617567300,11.85,129.63,129.59,3.8587]
[1725617567816,3.8585,129.61,129.58,3.859]
[1725617568005,3.91706526,129.61,129.58,3.91586903]
[1725617570012,0.05856526,129.61,129.58,0.05686903]
[1725617570710,3.91686526,129.61,129.58,3.91586903]
[1725617573414,0.05856526,129.61,129.59,3.8587]
[1725617576710,0.05856526,129.61,129.6,3.8586]
[1725617578719,0.05856526,129.61,129.59,3.8586]
[1725617578919,0.05856526,129.61,129.58,0.05686903]
[1725617579314,0.05856526,129.61,129.59,3.8587]
[1725617580319,0.05856526,129.61,129.6,3.8586]
[1725617582417,0.05856526,129.61,129.58,0.05686903]
[1725617582917,0.05856526,129.61,129.59,3.8587]
[1725617584318,0.05856526,129.61,129.6,3.8586]
[1725617591920,0.05856526,129.61,129.6,15.7186]
[1725617594828,1.3518,129.65,129.63,3.8575]
[1725617595635,3.8569,129.66,129.64,3.8574]
[1725617596131,0.04962015,129.66,129.64,3.8574]
[1725617597727,3.90652015,129.66,129.63,15.7176]
[1725617597935,3.90652015,129.66,129.61,11.86]
[1725617598138,0.05332386,129.65,129.61,11.86]
[1725617598540,0.05332386,129.65,129.64,15.7173]
[1725617601147,1.3593,129.69,129.67,3.8562]
[1725617602237,1.416237,129.69,129.67,3.90798562]
[1725617602827,1.416237,129.69,129.68,3.8562]
[1725617603033,0.056937,129.69,129.68,3.8562]
[1725617615140,0.056937,129.69,129.68,15.7162]
[1725617625648,5.1894,129.74,129.71,3.8551]
[1725617625944,5.1894,129.74,129.71,15.7151]
[1725617626848,5.1894,129.74,129.71,15.7645328]
[1725617628950,1.335,129.74,129.71,0.0494328]
[1725617629347,3.8547,129.73,129.71,3.9045328]
[1725617632050,3.855,129.72,129.71,0.0494328]
[1725617632350,3.855,129.72,129.7,3.8554]
[1725617637152,3.855,129.72,129.7,3.90919006]
[1725617638451,3.90377407,129.72,129.7,3.90919006]
[1725617639050,7.78983655,129.71,129.7,0.05379006]
[1725617639246,9.12383655,129.71,129.7,0.05379006]
[1725617639946,9.12383655,129.71,129.69,3.8557]
[1725617640451,1.334,129.71,129.69,3.8557]
[1725617642253,1.334,129.71,129.69,3.90472827]
[1725617646163,1.334,129.71,129.7,15.7156]
[1725617648052,1.334,129.71,129.7,3.8556]
[1725617648261,1.334,129.71,129.7,15.7156]
[1725617652352,1.334,129.71,129.7,3.8556]
[1725617652549,1.334,129.71,129.69,0.04902827]
[1725617652550,1.334,129.71,129.69,3.90462827]
[1725617654657,0.04877407,129.72,129.7,11.86]
[1725617654959,0.04877407,129.72,129.71,11.86]
[1725617655359,0.04877407,129.72,129.71,15.7153]
[1725617668373,0.04877407,129.72,129.7,15.7154]
[1725617668875,3.90377407,129.72,129.7,15.7154]
[1725617676175,3.90377407,129.72,129.7,11.86]
[1725617676582,0.04877407,129.72,129.7,11.86]
[1725617677284,0.04877407,129.72,129.71,3.8553]
[1725617678084,3.91718,129.78,129.7,11.86]
[1725617678292,0.2835215,129.77,129.71,2.68381831]
[1725617678587,7.71166774,129.78,129.76,11.86]
[1725617678885,0.28348413,129.77,129.76,11.86]
[1725617679387,4.13698413,129.77,129.74,11.86]
[1725617679587,0.28348413,129.76,129.74,15.7142]
[1725617680884,3.8535,129.77,129.74,15.7142]
[1725617681187,0.2834752,129.76,129.74,15.7142]
[1725617681888,3.8535,129.77,129.74,15.7142]
[1725617682482,3.8535,129.77,129.74,15.76557675]
[1725617682483,3.90739899,129.77,129.74,15.76557675]
[1725617683791,3.90739899,129.77,129.75,3.8541]
[1725617690097,3.90739899,129.77,129.76,3.8538]
[1725617690098,0.05389899,129.77,129.76,3.8538]
[1725617690792,3.90739899,129.77,129.75,3.8539]
[1725617693589,11.91389899,129.77,129.74,0.05137675]
[1725617693789,11.86,129.76,129.74,0.05137675]
[1725617694193,3.8541,129.75,129.74,0.05137675]
[1725617694992,11.86,129.76,129.71,3.8551]
[1725617695192,3.8547,129.73,129.71,3.8551]
[1725617696193,3.90502273,129.73,129.71,3.8551]
[1725617697591,3.90502273,129.73,129.7,15.7154]
[1725617698694,3.8552,129.72,129.7,11.86]
[1725617699504,3.8553,129.71,129.7,0.05304382]
[1725617699699,7.65282587,129.71,129.7,0.05304382]
[1725617705609,7.93641882,129.71,129.7,0.05304382]
[1725617706313,7.65282587,129.71,129.7,0.05304382]
[1725617712508,19.79641868,129.71,129.7,0.05304382]
[1725617712708,15.65752587,129.71,129.64,11.86]
[1725617713014,11.86,129.7,129.65,3.8569]
[1725617713411,11.86,129.68,129.63,103.75727383]
[1725617713716,11.86,129.68,129.64,0.05832863]
[1725617713717,0.05499441,129.67,129.64,0.05832863]
[1725617715309,3.8571,129.65,129.64,0.05832863]
[1725617717605,3.8577,129.63,129.61,3.8582]
[1725617717808,14.6333,129.67,129.61,3.8582]
[1725617718018,14.6333,129.67,129.6,11.86]
[1725617718411,3.8575,129.64,129.6,11.86]
[1725617719020,0.05191989,129.63,129.61,3.858]
[1725617720216,3.90961989,129.63,129.61,3.858]
[1725617721619,0.05191989,129.63,129.61,3.858]
[1725617722617,0.05191989,129.63,129.61,3.91141325]
[1725617722820,0.05191989,129.63,129.62,15.718]
[1725617723021,3.80641408,129.7,129.62,11.86]
[1725617723221,2.6401,129.71,129.66,11.86]
[1725617723521,3.91741783,129.7,129.67,11.86]
[1725617723710,2.6401,129.71,129.67,11.86]
[1725617724020,3.90640483,129.7,129.68,3.90792144]
[1725617725920,0.05070483,129.7,129.69,3.8559]
[1725617726115,0.05070483,129.7,129.69,15.7159]
[1725617729623,7.7061,129.79,129.69,15.7159]
[1725617729624,2.7071,129.77,129.7,3.92309534]
[1725617729818,2.7071,129.77,129.74,11.86]
[1725617730017,3.9362109,129.78,129.75,3.854]
[1725617730219,3.8531,129.79,129.75,3.854]
[1725617730419,0.05693039,129.78,129.76,11.86]
[1725617730618,0.05693039,129.78,129.77,11.86]
[1725617730823,0.05693039,129.78,129.77,15.7135]
[1725617731214,0.05693039,129.78,129.77,3.8535]
[1725617731424,0.05693039,129.78,129.76,3.90245213]
[1725617731920,0.05693039,129.78,129.76,0.04885213]
[1725617732413,12.2003661,129.78,129.76,0.04885213]
[1725617732616,0.28343571,129.77,129.76,0.04885213]
[1725617733020,0.28350106,129.77,129.76,0.04885213]
[1725617733627,4.13700106,129.77,129.76,0.04885213]
[1725617737026,4.13700754,129.77,129.76,0.04885213]
[1725617738326,3.8546,129.74,129.71,3.8552]
[1725617738528,3.85178859,129.74,129.71,3.8552]
[1725617738727,11.86,129.75,129.71,3.8552]
[1725617739328,3.8548,129.73,129.7,3.8554]
[1725617739529,3.8067774,129.72,129.62,110.2249803]
[1725617739727,0.05698396,129.68,129.67,11.86]
[1725617739921,0.05608531,129.69,129.68,3.856]
[1725617740227,0.05271852,129.7,129.68,3.856]
[1725617743028,3.90831852,129.7,129.68,3.856]
[1725617743230,0.05271852,129.7,129.68,3.856]
[1725617745727,0.05271852,129.7,129.68,15.716]
[1725617747927,0.05271852,129.7,129.69,3.8559]
[1725617751032,0.05271852,129.7,129.69,15.7159]
[1725617751228,1.2956,129.75,129.69,11.86]
[1725617751428,3.8542,129.75,129.72,11.86]
[1725617751632,1.3925,129.76,129.72,11.86]
[1725617751825,0.28353022,129.75,129.72,11.86]
[1725617752034,0.28353022,129.75,129.72,15.7148]
[1725617752035,3.8542,129.75,129.72,15.7148]
[1725617752233,3.90925117,129.75,129.72,15.7148]
[1725617756534,3.90925117,129.75,129.73,3.8545]
[1725617757435,3.90925117,129.75,129.73,3.91380333]
[1725617758642,0.05505117,129.75,129.74,3.8544]
[1725617762045,0.05505117,129.75,129.73,0.05930333]
[1725617763444,0.05505117,129.75,129.74,3.8544]
[1725617769050,3.90915117,129.75,129.73,3.91380333]
[1725617769753,7.72122811,129.74,129.73,0.05930333]
[1725617769953,15.99793084,129.74,129.73,0.05930333]
[1725617770149,4.13793084,129.74,129.73,0.05930333]
[1725617771447,4.13791933,129.74,129.73,0.05930333]
[1725617772056,7.92156027,129.74,129.73,0.05930333]
[1725617772260,7.92156027,129.74,129.68,102.11169618]
[1725617772261,15.92716027,129.74,129.68,102.11169618]
[1725617772553,0.28351932,129.73,129.68,102.11169618]
[1725617773250,3.91386354,129.72,129.69,3.8556]
[1725617775654,3.8555,129.71,129.69,3.8556]
[1725617777555,3.91376354,129.72,129.7,3.8555]
[1725617777750,0.05866354,129.72,129.71,11.86]
[1725617778249,0.05866354,129.72,129.71,15.7153]
[1725617782556,3.91366354,129.72,129.7,3.8554]
[1725617783347,3.91366354,129.72,129.69,0.05519266]
[1725617783348,0.05866354,129.72,129.69,3.91099266]
[1725617783566,0.05866354,129.72,129.69,0.05519266]
[1725617783857,3.8554,129.71,129.69,3.91099266]
[1725617785555,3.91376354,129.72,129.7,3.8555]
[1725617787261,0.05866354,129.72,129.71,3.8553]
[1725617787859,0.05866354,129.72,129.71,15.7153]
[1725617793464,2.7188,129.8,129.75,3.8538]
[1725617793665,0.28352062,129.79,129.75,3.8538]
[1725617793860,3.78103516,129.78,129.75,15.7138]
[1725617794359,3.8536,129.77,129.75,15.7138]
[1725617794666,3.90296582,129.77,129.75,15.7138]
[1725617794963,3.90296582,129.77,129.75,3.8538]
[1725617799068,0.04936582,129.77,129.74,11.86]
[1725617799272,0.33283708,129.77,129.74,11.86]
[1725617799563,0.04936582,129.77,129.76,15.7138]
[1725617799767,0.05723041,129.78,129.76,11.86]
[1725617799960,0.05723041,129.78,129.77,11.86]
[1725617800272,0.05723041,129.78,129.77,15.7135]
[1725617801170,0.05723041,129.78,129.77,3.8535]
[1725617802964,0.05723041,129.78,129.77,15.7135]
[1725617803470,2.6794,129.85,129.77,11.86]
[1725617803665,0.28341198,129.82,129.79,11.86]
[1725617803867,0.2834119,129.81,129.8,3.8525]
[1725617804165,8.96915566,129.83,129.8,3.8525]
[1725617804466,0.28337605,129.82,129.81,3.8523]
[1725617804674,0.28337605,129.83,129.81,3.8523]
[1725617804969,85.99400235,129.84,129.81,3.8523]
[1725617805171,3.8517,129.83,129.81,3.8523]
[1725617807362,3.8517,129.83,129.81,3.91154647]
[1725617807568,3.90913671,129.83,129.81,3.91154647]
[1725617808072,0.05743671,129.83,129.82,3.852]
[1725617810776,0.05743671,129.83,129.82,15.712]
[1725617811170,0.28328002,129.88,129.82,11.86]
[1725617811470,3.91878606,129.87,129.85,11.86]
[1725617811674,1.3424,129.89,129.85,11.86]
[1725617812178,1.3424,129.89,129.86,0.05069887]
[1725617812568,5.10471211,129.89,129.86,0.05069887]
[1725617812764,1.3424,129.89,129.86,0.05069887]
[1725617813075,5.21635438,129.89,129.86,0.05069887]
[1725617813264,13.2024,129.89,129.86,0.05069887]
[1725617813463,3.8505,129.87,129.86,0.05069887]
[1725617813668,7.670125,129.87,129.86,0.05069887]
[1725617816266,11.86,129.91,129.86,0.05069887]
[1725617816471,0.28324118,129.9,129.86,0.05069887]
[1725617817373,11.86,129.91,129.86,0.05069887]
[1725617817577,0.28323977,129.9,129.86,0.05069887]
[1725617818269,3.8505,129.87,129.86,0.05069887]
[1725617818879,3.8502,129.89,129.86,0.05069887]